Cogmind - Beta 13 @@@ ROGUE MODE // 2024.04.05 @ 16:12:09 Player: Cyurio Result: Self-destructed Performance ------------- Evolutions (3) 1500 Regions Visited (8) 1600 Robots Destroyed (34) 170 Value Destroyed (901) 901 Prototype IDs (24) 480 Alien Tech Used (0) 0 Bonus (300) 300 TOTAL SCORE: 4951 Bonus ------- Aligned with FarCom 300 Cogmind --------- Core Integrity 433/700 Matter 176/300 Energy 6/100 System Corruption 3% Temperature Cool (0) Movement Flying (26) Location -7/Factory Parts ------- > --- POWER (1) -------- (None) > --- PROPULSION (4) --- Improved VTOL Module Improved VTOL Module Improved VTOL Module Improved VTOL Module > --- UTILITY (6) ------ Medium Storage Unit Signal Interpreter Targeting Computer Hacking Suite > --- WEAPON (2) ------- Remote Datajack Powered Hammer > --- INVENTORY (10) --- Wheel Signal Interpreter Cloak of Protection Medium Armor Plating Improved Light Armor Plating Autogun Autogun Autogun Mini Grenade Launcher Peak State ------------ > --- POWER ------------ Light Nuclear Core > --- PROPULSION ------- Improved VTOL Module Improved VTOL Module Improved VTOL Module Improved VTOL Module > --- UTILITY ---------- Medium Storage Unit Signal Interpreter Targeting Computer Reaction Control System Hacking Suite System Shield > --- WEAPON ----------- Powered Hammer > --- INVENTORY -------- Light Nuclear Core Wheel Signal Interpreter Cloak of Protection Medium Armor Plating Improved Light Armor Plating Autogun Autogun Autogun Mini Grenade Launcher [Rating: 37] Favorites ----------- Power Light Nuclear Core Engine Improved Ion Engine Power Core Light Nuclear Core Propulsion Aluminum Leg Leg Aluminum Leg Wheel Wheel Flight Unit Improved VTOL Module Utility Medium Storage Unit Device Tractor Beam Storage Medium Storage Unit Processor Targeting Computer Hackware Hacking Suite Protection Medium Armor Plating Weapon Autogun Energy Gun Small Laser Ballistic Gun Autogun Launcher Mini Grenade Launcher Special Weapon Remote Datajack Impact Weapon Powered Hammer Build | -11 -10 -10 -9 -9 -9 -8 -8 -7 ------- Run | Yrd Mat Min Mat Min Exi Min Mat Fac Slots Evolved 6 | . . . 2 . . . 2 2 Power . | . . . . . . . . . Propulsion 2 | . . . 1 . . . 1 . Utility 4 | . . . 1 . . . 1 2 Weapon . | . . . . . . . . . Parts Attached 33 | . 6 2 4 4 . 2 5 10 Power 5 | . 1 1 . 1 . . 1 1 Engine 2 | . 1 1 . . . . . . Core 3 | . . . . 1 . . 1 1 Reactor . | . . . . . . . . . Propulsion 7 | . . 1 1 1 . . 1 3 Treads . | . . . . . . . . . Leg 2 | . . 1 1 . . . . . Wheel 1 | . . . . 1 . . . . Hover . | . . . . . . . . . Flight 4 | . . . . . . . 1 3 Utility 10 | . 4 . 1 . . . 1 4 Device 3 | . 2 . . . . . . 1 Storage 1 | . 1 . . . . . . . Processor 2 | . 1 . . . . . . 1 Hackware 2 | . . . . . . . . 2 Protection 2 | . . . 1 . . . 1 . Artifact . | . . . . . . . . . Weapon 11 | . 1 . 2 2 . 2 2 2 Energy Gun . | . . . . . . . . . Energy Cannon . | . . . . . . . . . Ballistic Gun 6 | . 1 . 2 1 . 1 1 . Ballistic Cannon . | . . . . . . . . . Launcher 3 | . . . . 1 . 1 1 . Special Weapon 1 | . . . . . . . . 1 Impact Weapon 1 | . . . . . . . . 1 Slashing Weapon . | . . . . . . . . . Piercing Weapon . | . . . . . . . . . Special Melee Weapon . | . . . . . . . . . Unidentified Prototypes 1 | . . . . . . . 1 . Corrupted Parts 1 | . . . . . . . . 1 System Corruption 2 | . . . . . . . . 2 Parts Lost 12 | . 1 1 2 3 . . 1 4 Power 4 | . . 1 . 1 . . . 2 Propulsion 3 | . . . . 2 . . 1 . Utility 3 | . 1 . . . . . . 2 Weapon 2 | . . . 2 . . . . . Highest Loss Streak 3 | . 1 1 2 3 . . 1 3 To Critical Strikes 2 | . . . . . . . . 2 Average Slot Usage (%) 89 | . 99 97 91 94 88 88 80 85 Engine 5 | . 14 11 11 6 . . . . Core 5 | . . . . 3 11 11 9 5 Leg 16 | . 28 28 33 24 11 11 7 . Wheel 4 | . . . . 3 11 11 9 . Flight 3 | . . . . . . . . 28 Device 4 | . 12 . . . . . . 6 Storage 10 | . 14 14 11 11 11 11 9 7 Processor 8 | . . 14 11 11 11 11 9 14 Hackware 1 | . . . . . . . . 10 Protection 8 | . . . 5 11 11 11 17 1 Ballistic Gun 19 | . 28 28 19 18 22 21 17 1 Naked Turns . | . . . . . . . . . Heaviest Build 31 | 12 22 20 30 30 28 28 31 31 Greatest Support 30 | 20 20 20 30 30 10 10 10 20 Greatest Overweight (x) 3 | . 1 . . 2 2 2 3 3 Average Overweight (x) 1 | . . . . . 2 2 2 . Largest Inventory Capacity 10 | 8 10 10 10 10 10 10 10 10 Average Capacity 9 | 8 9 10 10 10 10 10 10 10 Most Carried 10 | 6 10 9 10 10 10 10 10 10 Average Carried 9 | 6 8 8 8 9 9 10 9 9 Final Capacity 10 | 8 10 10 10 10 10 10 10 10 Final Carried 10 | 6 9 9 10 9 10 10 10 9 Class Distribution -------------------- 90% | Mutant 6% | Hacker-Sprinter 3% | Sprinter Dominant Class ---------------- Mutant | -10/Materials Mutant | -10/Mines Mutant | -9/Materials Mutant | -9/Mines Mutant | -9/Exiles Mutant | -8/Mines Mutant | -8/Materials Hacker-Sprinter | -7/Factory Resources | -11 -10 -10 -9 -9 -9 -8 -8 -7 ----------- Run | Yrd Mat Min Mat Min Exi Min Mat Fac Matter Collected 956 | 200 267 87 59 24 . 10 236 73 Remotely 48 | . 48 . . . . . . . Salvage Created 994 | . 325 87 59 46 . 14 317 146 Parts 58 | . 20 4 4 1 . 3 23 3 Haulers Intercepted 2 | . . . . . . . 2 . Recyclers Shooed . | . . . . . . . . . Parts Field Recycled . | . . . . . . . . . Retrieved Matter . | . . . . . . . . . Parts Self-Destructed . | . . . . . . . . . Prevented . | . . . . . . . . . Kills | -11 -10 -10 -9 -9 -9 -8 -8 -7 ------- Run | Yrd Mat Min Mat Min Exi Min Mat Fac Combat Hostiles Destroyed 28 | . 9 2 1 2 . 3 7 4 Melee 3 | . . . . . . . . 3 Guns 17 | . 9 2 1 1 . . 4 . AOE 7 | . . . . 1 . 3 3 . Classes Destroyed 9 | . 4 . 1 . . . 2 2 Tunneler 1 | . 1 . . . . . . . Hauler 2 | . . . . . . . 2 . Recycler 1 | . . . . . . . . 1 Operator 1 | . . . . . . . 1 . Watcher 1 | . 1 . . . . . . . Swarmer 12 | . 3 . . . . 3 3 3 Grunt 12 | . 6 2 . 2 . . 2 . Sentry 3 | . . . 1 . . . 2 . Programmer 1 | . . . . . . . . 1 Best Kill Streak 4 | . 3 2 1 2 . 3 4 3 Combat Bots Only 3 | . 3 2 1 2 . 3 3 2 Max Kills in Single Turn 2 | . 1 1 1 1 . 2 2 1 Gunslinging . | . . . . . . . . . Exploded 2 | . . . . 1 . 2 2 . Melee 1 | . . . . . . . . 1 Uniques/NPCs Destroyed . | . . . . . . . . . Combat | -11 -10 -10 -9 -9 -9 -8 -8 -7 -------- Run | Yrd Mat Min Mat Min Exi Min Mat Fac Hostile Shots Fired 178 | . 55 14 8 5 . 3 26 67 Missed 58 | . 18 1 1 2 . 2 7 27 Damage Taken 1662 | . 364 202 103 134 . 6 267 586 Core 453 | . 84 13 27 6 . . 56 267 Absorbed by Shields 106 | . 106 . . . . . . . Core Remaining (%) 85 | 100 . 61 . . . 91 89 . Volleys Fired 84 | . 37 9 4 5 . 2 27 . Largest 2 | . 2 2 2 2 . 1 2 . Hottest 46 | . 40 40 40 46 . 30 46 . Shots Fired 157 | . 74 18 5 6 . 2 52 . Gun 149 | . 74 18 5 2 . . 50 . Cannon . | . . . . . . . . . Launcher 8 | . . . . 4 . 2 2 . Special . | . . . . . . . . . Kinetic 149 | . 74 18 5 2 . . 50 . Thermal . | . . . . . . . . . Explosive 8 | . . . . 4 . 2 2 . Electromagnetic . | . . . . . . . . . Robot Hit Streak 15 | . 10 12 7 13 . . 15 . Robot Miss Streak 4 | . 4 2 . . . . 2 . Penetration Max . | . . . . . . . . . Secondary Targets 1 | . . 1 . . . . . . Max Gunslinging Chain 1 | . . 1 . . . . . . Shots Hit Robots 127 | . 54 12 5 6 . . 36 14 Core Hits 57 | . 23 5 3 3 . 4 18 1 Critical Kills . | . . . . . . . . . Critical Parts Destroyed 4 | . . . . . . . . 4 Critical Strikes 4 | . . . . . . . . 4 Smash 4 | . . . . . . . . 4 Melee Attacks 23 | . . . . . . . . 23 Impact 23 | . . . . . . . . 23 Slashing . | . . . . . . . . . Piercing . | . . . . . . . . . Sneak Attacks 1 | . . . . . . . . 1 Combat Hostiles . | . . . . . . . . . Follow-up Attacks . | . . . . . . . . . Damage Inflicted 2501 | . 530 120 64 235 . 105 769 678 Guns 1304 | . 527 120 64 33 . . 560 . Cannons . | . . . . . . . . . Explosions 516 | . . . . 202 . 105 209 . Melee 678 | . . . . . . . . 678 Ramming 3 | . 3 . . . . . . . Kinetic 1304 | . 527 120 64 33 . . 560 . Thermal . | . . . . . . . . . Explosive 516 | . . . . 202 . 105 209 . Electromagnetic . | . . . . . . . . . Impact 678 | . . . . . . . . 678 Slashing . | . . . . . . . . . Piercing . | . . . . . . . . . Highest Corruption 3 | . . . . . . . . 3 Average Corruption 1 | . . . . . . . . 1 Corruption Purged . | . . . . . . . . . Corruption Blocked . | . . . . . . . . . Effects 1 | . . . . . . . . 1 Matter Fused 1 | . . . . . . . . 1 Overload Shots . | . . . . . . . . . Overflow Damage 311 | . . . . 11 . . 12 288 Projectiles . | . . . . . . . . . Explosions 23 | . . . . 11 . . 12 . Melee 288 | . . . . . . . . 288 Knockbacks 2 | . . . . . . . . 2 Impact 2 | . . . . . . . . 2 Kinetic . | . . . . . . . . . Secondary . | . . . . . . . . . Self-Inflicted Damage 90 | . . . . 90 . . . . Shots 4 | . . . . 4 . . . . Rammed . | . . . . . . . . . Targets Rammed 2 | . 2 . . . . . . . Kicked 2 | . 2 . . . . . . . Crushed . | . . . . . . . . . Highest Temperature 63 | . 23 34 10 6 . . 63 . Average Temperature 11 | . 5 13 4 3 . . 18 . Received Heat Transfer 473 | . 179 129 36 27 . . 90 12 Siege Activations . | . . . . . . . . . Robots Corrupted . | . . . . . . . . . Combat Hostiles . | . . . . . . . . . Parts Fried 2 | . . . . . . . . 2 Impact Corruptions 11 | . . . . . . . . 11 Robots Melted . | . . . . . . . . . Combat Hostiles . | . . . . . . . . . Parts Melted . | . . . . . . . . . Heat Transferred . | . . . . . . . . . Parts Sabotaged . | . . . . . . . . . Parts Stolen . | . . . . . . . . . Parts Stripped . | . . . . . . . . . Power Chain Reactions . | . . . . . . . . . Alert | -11 -10 -10 -9 -9 -9 -8 -8 -7 ------- Run | Yrd Mat Min Mat Min Exi Min Mat Fac Peak Influence 200 | . 200 118 70 71 . 87 164 154 Initial 78 | . . 78 45 27 . . 33 74 Average 74 | . 84 105 58 44 . 79 72 87 Maximum Alert Level 1 | . 1 . . . . . . . Low Security (%) 99 | 100 97 100 100 100 . 100 100 100 Level 1 . | . 2 . . . . . . . Level 2 . | . . . . . . . . . Level 3 . | . . . . . . . . . Level 4 . | . . . . . . . . . Level 5 . | . . . . . . . . . High Security . | . . . . . . . . . Max Security . | . . . . . . . . . Squads Dispatched 2 | . 1 . . . . . 1 . Investigation 1 | . 1 . . . . . . . Extermination . | . . . . . . . . . Reinforcement 1 | . . . . . . . 1 . Assault . | . . . . . . . . . Garrison . | . . . . . . . . . Intercept . | . . . . . . . . . Searches Triggered . | . . . . . . . . . Construction Impeded . | . . . . . . . . . Haulers Reinforced . | . . . . . . . . . Active Scanning Responses . | . . . . . . . . . Cargo Convoy Interrupts . | . . . . . . . . . Stealth | -11 -10 -10 -9 -9 -9 -8 -8 -7 --------- Run | Yrd Mat Min Mat Min Exi Min Mat Fac Distress Signals . | . . . . . . . . . Communications Jammed . | . . . . . . . . . Distress Signals . | . . . . . . . . . Times Spotted 41 | . 15 2 1 2 . 3 12 6 Peak Tracking Total 4 | . 3 2 1 1 . 3 3 4 Tactical Retreats 1 | . 1 . . . . . . . Traps | -11 -10 -10 -9 -9 -9 -8 -8 -7 ------- Run | Yrd Mat Min Mat Min Exi Min Mat Fac Traps Triggered 3 | . 2 . . . . . . 1 Indirectly . | . . . . . . . . . Trap Hack Attempts . | . . . . . . . . . Triggered . | . . . . . . . . . Disarmed . | . . . . . . . . . Reprogrammed . | . . . . . . . . . Reused . | . . . . . . . . . Traps Extracted . | . . . . . . . . . Installed . | . . . . . . . . . Triggered . | . . . . . . . . . Machines | -11 -10 -10 -9 -9 -9 -8 -8 -7 ---------- Run | Yrd Mat Min Mat Min Exi Min Mat Fac Machines Disabled . | . . . . . . . . . Max in Single Turn . | . . . . . . . . . Machines Repaired . | . . . . . . . . . Machines Dismantled . | . . . . . . . . . Machines Sabotaged . | . . . . . . . . . Overloaded Fab Kills . | . . . . . . . . . Hacking | -11 -10 -10 -9 -9 -9 -8 -8 -7 --------- Run | Yrd Mat Min Mat Min Exi Min Mat Fac Machines Accessed 5 | . 1 . . . 1 . 2 1 Terminals 4 | . 1 . . . . . 2 1 Fabricators . | . . . . . . . . . Repair Stations . | . . . . . . . . . Recycling Units . | . . . . . . . . . Scanalyzers . | . . . . . . . . . Garrison Access . | . . . . . . . . . Total Hacks 9 | . 4 . . . 1 . 3 1 Successful 4 | . 2 . . . 1 . 1 . Failed 5 | . 2 . . . . . 2 1 Catastrophic 1 | . . . . . . . 1 . Database Lockouts . | . . . . . . . . . Manual 1 | . . . . . 1 . . . Terminals 8 | . 4 . . . . . 3 1 Fabricators . | . . . . . . . . . Repair Stations . | . . . . . . . . . Recycling Units . | . . . . . . . . . Scanalyzers . | . . . . . . . . . Garrison Access . | . . . . . . . . . Terminal Hacks 4 | . 2 . . . 1 . 1 . Record 1 | . 1 . . . . . . . Locate Traps 1 | . 1 . . . . . . . Dispatch Records 1 | . . . . . . . 1 . Derelict Proto ID Bank 1 | . . . . . 1 . . . Fabricator Hacks . | . . . . . . . . . Repair Station Hacks . | . . . . . . . . . Recycling Unit Hacks . | . . . . . . . . . Scanalyzer . | . . . . . . . . . Garrison Access Hacks . | . . . . . . . . . Unauthorized Hacks . | . . . . . . . . . Terminals . | . . . . . . . . . Fabricators . | . . . . . . . . . Repair Stations . | . . . . . . . . . Recycling Units . | . . . . . . . . . Scanalyzers . | . . . . . . . . . Garrison Access . | . . . . . . . . . Data Cores Recovered 1 | . . . . . . . 1 . Used . | . . . . . . . . . Hacking Detections 2 | . 1 . . . . . . 1 Full Trace Events . | . . . . . . . . . Feedback Events . | . . . . . . . . . Feedback Blocked . | . . . . . . . . . Robot Schematics Acquired . | . . . . . . . . . Robots Built . | . . . . . . . . . Authchips . | . . . . . . . . . Time . | . . . . . . . . . Total Robot Build Rating . | . . . . . . . . . Part Schematics Acquired . | . . . . . . . . . Parts Built . | . . . . . . . . . Authchips . | . . . . . . . . . Time . | . . . . . . . . . Total Part Build Rating . | . . . . . . . . . Parts Repaired . | . . . . . . . . . Time . | . . . . . . . . . Parts Recycled . | . . . . . . . . . Recycled Matter . | . . . . . . . . . Retrieved Matter . | . . . . . . . . . Retrieved Components . | . . . . . . . . . Parts Scanalyzed . | . . . . . . . . . Part Schematics Acquired . | . . . . . . . . . Parts Damaged . | . . . . . . . . . Bothacking | -11 -10 -10 -9 -9 -9 -8 -8 -7 ------------ Run | Yrd Mat Min Mat Min Exi Min Mat Fac Used RIF Installer . | . . . . . . . . . Robots Hacked . | . . . . . . . . . Non-combat . | . . . . . . . . . Combat . | . . . . . . . . . Robot Hacks Applied . | . . . . . . . . . Relay Couplers Released . | . . . . . . . . . Fabnet Peak Effective % . | . . . . . . . . . Robots Rewired . | . . . . . . . . . Allies Hacked . | . . . . . . . . . Hacks Repelled . | . . . . . . . . . Allies | -11 -10 -10 -9 -9 -9 -8 -8 -7 -------- Run | Yrd Mat Min Mat Min Exi Min Mat Fac Total Allies 1 | . . . . 1 . . . . Largest Group 1 | . . . . 1 . . . . Highest-Rated Group 31 | . . . . 31 . . . . Highest-Rated Ally 31 | . . . . 31 . . . . Total Orders . | . . . . . . . . . Ally Attacks . | . . . . . . . . . Total Damage . | . . . . . . . . . Kills . | . . . . . . . . . Allies Corrupted . | . . . . . . . . . Allies Melted . | . . . . . . . . . Intel | -11 -10 -10 -9 -9 -9 -8 -8 -7 ------- Run | Yrd Mat Min Mat Min Exi Min Mat Fac Robot Analysis Total . | . . . . . . . . . Derelict Logs Recovered 2 | . . 2 . . . . . . Drone Launches . | . . . . . . . . . Drone Recoveries . | . . . . . . . . . Exploration | -11 -10 -10 -9 -9 -9 -8 -8 -7 ------------- Run | Yrd Mat Min Mat Min Exi Min Mat Fac Turns Passed 2596 | 3 698 56 152 251 228 190 754 264 Spaces Moved 1696 | 3 333 23 108 201 207 166 356 299 Core . | . . . . . . . . . Treads . | . . . . . . . . . Legs 589 | 3 333 23 108 122 . . . . Wheels 820 | . . . . 79 207 166 356 12 Hover . | . . . . . . . . . Flight 287 | . . . . . . . . 287 Fastest Speed 26 | 120 120 120 120 110 110 110 110 26 Average Speed 109 | 120 154 120 120 116 110 110 124 29 Slowest Speed 190 | 120 190 120 120 120 110 110 125 125 Overloaded Moves . | . . . . . . . . . Propulsion Burnouts . | . . . . . . . . . Robots Hopped 1 | . . . . . . . . 1 Cave-ins Triggered . | . . . . . . . . . Exploration Rate (%) 33 | 3 63 9 11 49 61 59 35 7 Regions Visited 8 Branch Regions 4 Pre-discovered Areas . | . . . . . . . . . Known Exits Taken 1 | . . . 1 . . . . . Unknown Exits Taken 7 | 1 1 1 . 1 1 1 1 . Scrap Searched . | . . . . . . . . . Spaces Dug . | . . . . . . . . . Terrain Destroyed 74 | . . . . 44 . 17 13 . Melee . | . . . . . . . . . Projectile . | . . . . . . . . . AOE 74 | . . . . 44 . 17 13 . Terrain Rammed . | . . . . . . . . . Walls Destroyed . | . . . . . . . . . Machines Disabled . | . . . . . . . . . Actions | -11 -10 -10 -9 -9 -9 -8 -8 -7 --------- Run | Yrd Mat Min Mat Min Exi Min Mat Fac Total 2262 | 2 452 35 125 212 207 170 628 431 Wait 388 | . 57 . 5 2 . 1 227 96 Move 1686 | 2 332 22 107 200 206 165 355 297 Hop 1 | . . . . . . . . 1 Pick Up 24 | . 10 1 4 1 1 . 7 . Fast Attach 8 | . 1 . 2 . . . 1 4 Attach 12 | . 1 1 2 2 . . 1 5 Detach 4 | . . . . . . . . 4 Swap 13 | . 4 1 . 2 . 2 3 1 Drop 17 | . 8 1 1 . . . 7 . Fire 84 | . 37 9 4 5 . 2 27 . Melee 23 | . . . . . . . . 23 Ram . | . . . . . . . . . Kick 2 | . 2 . . . . . . . Crush . | . . . . . . . . . Escape Stasis . | . . . . . . . . . Rewire . | . . . . . . . . . Trap . | . . . . . . . . . Miscellaneous . | . . . . . . . . . Route ------- -11/Scrapyard -10/Materials (discovered 3 exits: [*Mat x2] / [*Min]) -10/Mines -9/Materials -9/Mines (discovered 2 exits: *Mat / *Exi) -9/Exiles -8/Mines -8/Materials -7/Factory History --------- Turn | Location | Event 1 | -11/Scrapyard | Discovered new exit (range 3) 4 | -11/Scrapyard | Entered Materials 165 | -10/Materials | Discovered new exit (range 13) 314 | -10/Materials | Build established: Mutant 545 | -10/Materials | Discovered new exit (range 15) 625 | -10/Materials | Discovered new exit (range 6) 702 | -10/Materials | Entered Mines 741 | -10/Mines | Learned Materials stockpile data 752 | -10/Mines | Learned 2 Materials zone layouts 753 | -10/Mines | Discovered new exit (range 4) 758 | -10/Mines | Entered Materials 758 | -9/Materials | Evolved 2 slots: Propulsion x1, Utility x1 759 | -9/Materials | Identified exit to Mines 910 | -9/Materials | Entered Mines 981 | -9/Mines | Assembled infested the area 1087 | -9/Mines | Received a Mining Laser from a helpful Derelict 1096 | -9/Mines | Lost 3 parts (1p2n) 1142 | -9/Mines | Discovered new exit (range 8) 1156 | -9/Mines | Discovered new exit (range 5) 1161 | -9/Mines | Entered Exiles 1189 | -9/Exiles | Met 8R-AWN 1207 | -9/Exiles | Met EX-HEX 1237 | -9/Exiles | Met EX-BIN 1251 | -9/Exiles | Aligned with FarCom system 1252 | -9/Exiles | Given EX-Vault access code 1277 | -9/Exiles | Opened EX-Vault 1285 | -9/Exiles | Found Cloak of Protection 1308 | -9/Exiles | Warned to stay clear of 0b10 Research branches 1341 | -9/Exiles | Met EX-DEC 1378 | -9/Exiles | Discovered new exit (range 12) 1389 | -9/Exiles | Left Exiles lab with Cloak of Protection 1389 | -9/Exiles | Entered Mines 1568 | -8/Mines | Discovered new exit (range 10) 1579 | -8/Mines | Entered Materials 1579 | -8/Materials | Evolved 2 slots: Propulsion x1, Utility x1 2002 | -8/Materials | Discovered new exit (range 5) 2333 | -8/Materials | Entered Factory 2333 | -7/Factory | Evolved 2 slots: Utility x2 2588 | -7/Factory | Lost 3 parts (2p1u) 2597 | -7/Factory | Self-destructed Last Messages --------------- 02569_ Destroyed VTOL Module. 02569_ S-27 Virus system corrupted by crushing effect. 02577_ S-27 Virus suffers critical hit (Smash). 02577_ Destroyed Autogun. 02577_ Destroyed Lgt. Nuclear Core. 02577_ S-27 Virus system corrupted by crushing effect. 02577_ VTOL Module fried. 02577_ S-27 Virus destroyed. 02580_ Acquired 26 matter. 02581_ Sneak attack on R-06 Scavenger. 02581_ R-06 Scavenger destroyed. 02584_ Acquired Corrupted Remote Datajack. 02584_ Integrated Corrupted Remote Datajack (+2). 02584_ Complication: Energy sink damages Corrupted Remote Datajack (-13). 02589_ Critical hit (Destroy). 02589_ Reaction Control System destroyed. Map ----- +----------------------------------------------------+ | ????????????????????????# #?????????? | | ????????????????????????# #?????????? | | ????????????????????????# #?????????? | | ????????????????????????# #?????????? | | ????????????????????????# ########### | | ????????????????????????# | | ????????????????????????# | | ????????????????????????# | | ????????????????????????# | | ????????????????????????# | | ??????????????????" ????# ##################+# | | ??????????????????" ""??# # # | | ?????????????? """ """ # # # = | | ???????????# !! + + # | | ?????????????? """ """ # # # | | ??????????????????" ""??# # # """" | | ??????????????????" ????# # #* """" | | ????????????????????????# # # """" | | ????????????????????????# # # """" | | ????????????????????????# # + """" | | ????????????????######### # # """" | | ????????? # # """" | | ????????????????######### # # | | ??????????????###########* #################### | | ??????????????# %#% #??????????????????? | | ??????????????# #@ #??????????????????? | | ??????????????# # #????##????????????? | | ??????????????# + #???# #####????????? | | ??????????????# # #?? ! #????????? | | ??????????????# # #??Y ??????????? | | ??????????????# # #? """??????????? | | ??????????????# # #? """ ?????????? | | ??????????Y???########### # """ #????????? | | ???????????????????????# # "" #????????? | | ???????????????????????#T + "" #????????? | | ???????????????????????## # #????????? | | ????????????????????????# ###########????????? | | ????????????????????????# #??????????????????? | | ????????????????????????# #??????????????????? | | ????????????????????????# #??????????????????? | | ????????????????????? #??????????????????? | | ?????????????????? s #??????????????????? | | ???????????????" == !! s +??????????????????? | | ???????????????" =! ![ #??????????????????? | | ???????????????" #??????????????????? | | ??????????????? #??????????????????? | | ???????????????? #??????????????????? | | ???????????????? #??????????????????? | | ????????????????? #??????????????????? | | ????????????????? """" #??????????????????? | +----------------------------------------------------+ Best States ------------- Heat Dissipation 34 Energy Generation 14 Energy Capacity 265 Matter Stores 300 Matter Capacity 300 Sight Range 16 Terrain Scan Density 10 Armor Coverage 375 Evasion (%) 72 Targeting Accuracy 5 Offensive Hacking 10 Defensive Hacking 10 Item Schematics ----------------- None Robot Schematics ------------------ None Fabricated ------------ Nothing Alien Tech Used ----------------- None Achievements -------------- None Challenges ------------ None Game ------ Seed TiamatShockFlightbrick Manual? 0 Play Time 00:25:47 Cumulative 95.0 hours Start 2024.04.05 @ 15:49:08 End 2024.04.05 @ 16:12:09 Sessions 1 Manual Loads 0 Difficulty Rogue Special Mode None Game No. 138 Rogue 138 Adventurer 0 Explorer 0 Win Type - Total 1 Types 1/0/0/0/0/0/0/0/0 Lore% 42 Gallery% 47 Achievement% 41 Wizard Run 0 Options --------- Layout 2 ASCII 0 Keyboard 1 Movement Vi Keybinds 1 Fullscreen 1 Font 32/SmallcapsGlow Map View 50x44 Zoom Use 0% Tactical HUD 1 Map Filters NONE Filters NONE Steam 1 RUN: c341524f-7998-4932-a9ae-1a743a51c2d6